[Event "Late-Titled-Tuesday-Blitz-January-23-2024"]
[Site "Chess.com"]
[Date "2024.01.23"]
[Round "8"]
[White "Mikhal867"]
[Black "rionelG"]
[Result "1-0"]
[WhiteElo "2420"]
[BlackElo "2261"]
[TimeControl "180+1"]
[EndTime "15:25:00 PST"]
[Termination "Mikhal867 won on time"]

1. c4 {[%clk 0:03:00.9]} 1... c5 {[%clk 0:02:56.6]} 2. Nf3 {[%clk 0:02:59.8]}
2... Nc6 {[%clk 0:02:57.2]} 3. g3 {[%clk 0:02:59.4]} 3... g6 {[%clk 0:02:56]} 4.
Bg2 {[%clk 0:02:58.6]} 4... Bg7 {[%clk 0:02:56.6]} 5. O-O {[%clk 0:02:58.1]}
5... e6 {[%clk 0:02:56.8]} 6. e3 {[%clk 0:02:57]} 6... Nge7 {[%clk 0:02:49.4]}
7. d4 {[%clk 0:02:57.1]} 7... cxd4 {[%clk 0:02:47.1]} 8. exd4 {[%clk 0:02:57.1]}
8... d5 {[%clk 0:02:47.6]} 9. Ne5 {[%clk 0:02:50.2]} 9... Nxe5 {[%clk
0:02:36.2]} 10. dxe5 {[%clk 0:02:49.3]} 10... O-O {[%clk 0:02:21.2]} 11. Re1
{[%clk 0:02:25.8]} 11... Qc7 {[%clk 0:02:02.1]} 12. cxd5 {[%clk 0:02:20.4]}
12... Nxd5 {[%clk 0:01:59.9]} 13. f4 {[%clk 0:02:12.4]} 13... Bd7 {[%clk
0:01:41.3]} 14. b3 {[%clk 0:01:55.4]} 14... Qb6+ {[%clk 0:01:36.6]} 15. Kh1
{[%clk 0:01:54.5]} 15... Bc6 {[%clk 0:01:36.8]} 16. Qe2 {[%clk 0:01:32.8]} 16...
Rfd8 {[%clk 0:01:30.9]} 17. Ba3 {[%clk 0:01:30.4]} 17... Bb5 {[%clk 0:01:17.5]}
18. Qf3 {[%clk 0:01:26.7]} 18... Rac8 {[%clk 0:01:13.6]} 19. Nd2 {[%clk
0:01:17]} 19... Rc3 {[%clk 0:00:55.7]} 20. Qe4 {[%clk 0:01:14.6]} 20... Bd3
{[%clk 0:00:41.1]} 21. Qa4 {[%clk 0:01:03.9]} 21... Qf2 {[%clk 0:00:20.4]} 22.
Ne4 {[%clk 0:00:57.4]} 22... Bxe4 {[%clk 0:00:20]} 23. Qxe4 {[%clk 0:00:56.8]}
23... Rc2 {[%clk 0:00:18.8]} 24. Qf3 {[%clk 0:00:51.2]} 24... Qxf3 {[%clk
0:00:14]} 25. Bxf3 {[%clk 0:00:50.9]} 25... Bf8 {[%clk 0:00:14.4]} 26. Bxf8
{[%clk 0:00:35.8]} 26... Kxf8 {[%clk 0:00:15.3]} 27. Re2 {[%clk 0:00:34.8]}
27... Rxe2 {[%clk 0:00:12.5]} 28. Bxe2 {[%clk 0:00:35]} 28... Nc3 {[%clk
0:00:10.7]} 29. Bf3 {[%clk 0:00:35]} 29... b6 {[%clk 0:00:11.1]} 30. Rc1 {[%clk
0:00:32.9]} 30... Rd3 {[%clk 0:00:11.6]} 31. Kg2 {[%clk 0:00:30.2]} 31... a5
{[%clk 0:00:10.3]} 32. a3 {[%clk 0:00:24.3]} 32... Rd2+ {[%clk 0:00:07.7]} 33.
Kh3 {[%clk 0:00:22.7]} 33... Nd5 {[%clk 0:00:07.6]} 34. Rc8+ {[%clk 0:00:18.8]}
34... Kg7 {[%clk 0:00:07.5]} 35. Rb8 {[%clk 0:00:17.6]} 1-0

[Event "Late-Titled-Tuesday-Blitz-January-23-2024"]
[Site "Chess.com"]
[Date "2024.01.23"]
[Round "8"]
[White "Dedic8"]
[Black "Hikaru"]
[Result "0-1"]
[WhiteElo "2815"]
[BlackElo "3280"]
[TimeControl "180+1"]
[EndTime "15:25:04 PST"]
[Termination "Hikaru won on time"]

1. d4 {[%clk 0:03:00.9]} 1... g6 {[%clk 0:02:59.1]} 2. e4 {[%clk 0:03:00.5]}
2... Bg7 {[%clk 0:02:59]} 3. Nc3 {[%clk 0:03:01.3]} 3... c6 {[%clk 0:02:59.3]}
4. Nf3 {[%clk 0:02:58.6]} 4... d5 {[%clk 0:02:59.3]} 5. h3 {[%clk 0:02:59]} 5...
dxe4 {[%clk 0:02:59.6]} 6. Nxe4 {[%clk 0:02:59.9]} 6... Nf6 {[%clk 0:03:00.3]}
7. Nxf6+ {[%clk 0:02:59.6]} 7... exf6 {[%clk 0:03:01.2]} 8. Bc4 {[%clk
0:02:56.3]} 8... O-O {[%clk 0:03:01.1]} 9. O-O {[%clk 0:02:57]} 9... b5 {[%clk
0:03:01.4]} 10. Bb3 {[%clk 0:02:57]} 10... Nd7 {[%clk 0:02:59.2]} 11. a4 {[%clk
0:02:57.1]} 11... Nb6 {[%clk 0:02:58.7]} 12. axb5 {[%clk 0:02:38]} 12... cxb5
{[%clk 0:02:59.6]} 13. c3 {[%clk 0:02:37.1]} 13... Bb7 {[%clk 0:02:58.2]} 14.
Bf4 {[%clk 0:02:37.3]} 14... Qd7 {[%clk 0:02:51.1]} 15. Re1 {[%clk 0:02:36.7]}
15... a5 {[%clk 0:02:49.1]} 16. Nd2 {[%clk 0:02:23.8]} 16... a4 {[%clk 0:02:48]}
17. Ba2 {[%clk 0:02:23.5]} 17... f5 {[%clk 0:02:46.7]} 18. Be5 {[%clk
0:02:11.2]} 18... Bh6 {[%clk 0:02:41.6]} 19. Nf1 {[%clk 0:01:54.9]} 19... Bd5
{[%clk 0:02:38.9]} 20. Ne3 {[%clk 0:01:28.6]} 20... Bxa2 {[%clk 0:02:36.6]} 21.
Rxa2 {[%clk 0:01:29.5]} 21... Bxe3 {[%clk 0:02:36.6]} 22. fxe3 {[%clk
0:01:28.1]} 22... f6 {[%clk 0:02:35.1]} 23. Bf4 {[%clk 0:01:27.6]} 23... Rfe8
{[%clk 0:02:35.4]} 24. b3 {[%clk 0:01:21.5]} 24... Nd5 {[%clk 0:02:22.1]} 25.
bxa4 {[%clk 0:01:01]} 25... bxa4 {[%clk 0:02:20.9]} 26. Qa1 {[%clk 0:00:52.8]}
26... Qc6 {[%clk 0:02:18.8]} 27. Rc1 {[%clk 0:00:46.2]} 27... Qc4 {[%clk
0:02:07]} 28. Ra3 {[%clk 0:00:30.9]} 28... g5 {[%clk 0:02:05.4]} 29. Bh2 {[%clk
0:00:29.4]} 29... Nxe3 {[%clk 0:01:58.7]} 30. Qa2 {[%clk 0:00:25.9]} 30... f4
{[%clk 0:01:56.8]} 31. Kh1 {[%clk 0:00:24.2]} 31... Qxa2 {[%clk 0:01:48.8]} 32.
Rxa2 {[%clk 0:00:24.3]} 32... Nc4 {[%clk 0:01:49.5]} 33. Bg1 {[%clk 0:00:24.6]}
33... Reb8 {[%clk 0:01:48.3]} 34. d5 {[%clk 0:00:23.1]} 34... a3 {[%clk
0:01:48.9]} 35. Bc5 {[%clk 0:00:21.9]} 35... Rb2 {[%clk 0:01:48.8]} 36. Rca1
{[%clk 0:00:14.6]} 36... Rxa2 {[%clk 0:01:41.3]} 37. Rxa2 {[%clk 0:00:15.5]}
37... Ra5 {[%clk 0:01:41.4]} 38. Bd4 {[%clk 0:00:12.3]} 38... Kf7 {[%clk
0:01:17]} 39. Kg1 {[%clk 0:00:12.1]} 39... Rxd5 {[%clk 0:00:59.2]} 40. Kf2
{[%clk 0:00:10.1]} 40... Rb5 {[%clk 0:00:53.5]} 41. Kf3 {[%clk 0:00:10.4]} 41...
Rb2 {[%clk 0:00:53.7]} 42. Ra1 {[%clk 0:00:10.2]} 42... Nd2+ {[%clk 0:00:29.2]}
43. Kg4 {[%clk 0:00:05.7]} 43... Kg6 {[%clk 0:00:29.4]} 0-1

[Event "Late-Titled-Tuesday-Blitz-January-23-2024"]
[Site "Chess.com"]
[Date "2024.01.23"]
[Round "8"]
[White "Manukyan_Artak"]
[Black "Jenia84"]
[Result "1-0"]
[WhiteElo "2511"]
[BlackElo "2304"]
[TimeControl "180+1"]
[EndTime "15:25:04 PST"]
[Termination "Manukyan_Artak won by resignation"]

1. e4 {[%clk 0:03:00.9]} 1... e5 {[%clk 0:02:58.4]} 2. Nf3 {[%clk 0:03:00.8]}
2... Nc6 {[%clk 0:02:57.4]} 3. d4 {[%clk 0:03:01.3]} 3... exd4 {[%clk
0:02:57.3]} 4. Nxd4 {[%clk 0:03:02.2]} 4... Bc5 {[%clk 0:02:57]} 5. Nxc6 {[%clk
0:03:02.3]} 5... bxc6 {[%clk 0:02:56.7]} 6. Bc4 {[%clk 0:03:02.3]} 6... Nf6
{[%clk 0:02:55.4]} 7. O-O {[%clk 0:03:01.5]} 7... d5 {[%clk 0:02:53.8]} 8. exd5
{[%clk 0:03:00.7]} 8... cxd5 {[%clk 0:02:54.1]} 9. Bd3 {[%clk 0:02:58.7]} 9...
O-O {[%clk 0:02:53.2]} 10. Bg5 {[%clk 0:02:57.8]} 10... h6 {[%clk 0:02:52.3]}
11. Bh4 {[%clk 0:02:57.4]} 11... Be7 {[%clk 0:02:52.1]} 12. Re1 {[%clk 0:02:53]}
12... Be6 {[%clk 0:02:46.9]} 13. Nd2 {[%clk 0:02:51.4]} 13... Rb8 {[%clk
0:02:46.3]} 14. b3 {[%clk 0:02:50.6]} 14... c5 {[%clk 0:02:43]} 15. Nf3 {[%clk
0:02:46.3]} 15... Qc7 {[%clk 0:02:36.5]} 16. Bg3 {[%clk 0:02:41.6]} 16... Bd6
{[%clk 0:02:35.5]} 17. Bxd6 {[%clk 0:02:41.9]} 17... Qxd6 {[%clk 0:02:35.8]} 18.
Qe2 {[%clk 0:02:38.8]} 18... Rfc8 {[%clk 0:02:32]} 19. Qe5 {[%clk 0:02:37.2]}
19... Qxe5 {[%clk 0:02:31]} 20. Nxe5 {[%clk 0:02:37.3]} 20... c4 {[%clk
0:02:30.8]} 21. Bf1 {[%clk 0:02:29.6]} 21... cxb3 {[%clk 0:02:30]} 22. cxb3
{[%clk 0:02:30.5]} 22... Ne4 {[%clk 0:02:28.6]} 23. Nf3 {[%clk 0:02:17.7]} 23...
Rc3 {[%clk 0:02:10.2]} 24. Rec1 {[%clk 0:02:09.1]} 24... Rbc8 {[%clk 0:02:06.8]}
25. Rxc3 {[%clk 0:02:08.5]} 25... Rxc3 {[%clk 0:02:05.9]} 26. Nd4 {[%clk
0:02:09.1]} 26... a5 {[%clk 0:01:59.2]} 27. f3 {[%clk 0:01:44.4]} 27... Nc5
{[%clk 0:01:52.9]} 28. Re1 {[%clk 0:01:37]} 28... Kf8 {[%clk 0:01:44.5]} 29. Kf2
{[%clk 0:01:33.8]} 29... Ke7 {[%clk 0:01:41.6]} 30. Ke2 {[%clk 0:01:29.3]} 30...
Nd7 {[%clk 0:01:28]} 31. Kd2 {[%clk 0:01:26.1]} 31... Rc8 {[%clk 0:01:27.1]} 32.
Rc1 {[%clk 0:01:25.4]} 32... Rxc1 {[%clk 0:01:25.7]} 33. Kxc1 {[%clk 0:01:24]}
33... Kd6 {[%clk 0:01:25.6]} 34. Kd2 {[%clk 0:01:22.4]} 34... Kc5 {[%clk
0:01:25.5]} 35. Kc3 {[%clk 0:01:15.5]} 35... Ne5 {[%clk 0:01:23.1]} 36. a3
{[%clk 0:01:12.5]} 36... Kb6 {[%clk 0:01:16.7]} 37. b4 {[%clk 0:01:11.8]} 37...
axb4+ {[%clk 0:01:16.9]} 38. axb4 {[%clk 0:01:11]} 38... Ng6 {[%clk 0:01:15.5]}
39. g3 {[%clk 0:01:06.9]} 39... Ne7 {[%clk 0:01:14.8]} 40. f4 {[%clk 0:00:59.8]}
40... g5 {[%clk 0:01:06.8]} 41. fxg5 {[%clk 0:00:54.5]} 41... hxg5 {[%clk
0:01:06.3]} 42. h4 {[%clk 0:00:55.4]} 42... gxh4 {[%clk 0:01:05.8]} 43. gxh4
{[%clk 0:00:56.3]} 43... Nf5 {[%clk 0:01:00]} 44. Nxf5 {[%clk 0:00:54.8]} 44...
Bxf5 {[%clk 0:00:59.5]} 45. h5 {[%clk 0:00:50.8]} 45... Kc6 {[%clk 0:00:34.7]}
46. h6 {[%clk 0:00:48.1]} 46... Bg6 {[%clk 0:00:34.2]} 47. Bd3 {[%clk
0:00:46.5]} 47... f5 {[%clk 0:00:32]} 48. Kd4 {[%clk 0:00:46.4]} 48... Bh7
{[%clk 0:00:27.5]} 49. Ke5 {[%clk 0:00:45.7]} 49... Bg8 {[%clk 0:00:26.1]} 50.
Kf6 {[%clk 0:00:36.7]} 1-0

[Event "Late-Titled-Tuesday-Blitz-January-23-2024"]
[Site "Chess.com"]
[Date "2024.01.23"]
[Round "8"]
[White "GiorgianBarbosa"]
[Black "yaguigor"]
[Result "1-0"]
[WhiteElo "2473"]
[BlackElo "2625"]
[TimeControl "180+1"]
[EndTime "15:25:12 PST"]
[Termination "GiorgianBarbosa won on time"]

1. c4 {[%clk 0:02:48.3]} 1... c6 {[%clk 0:02:59.2]} 2. d4 {[%clk 0:02:47.8]}
2... d5 {[%clk 0:02:59.6]} 3. cxd5 {[%clk 0:02:43.9]} 3... cxd5 {[%clk
0:02:59.2]} 4. Nc3 {[%clk 0:02:44.8]} 4... Nf6 {[%clk 0:02:58.4]} 5. Bf4 {[%clk
0:02:45.1]} 5... Nc6 {[%clk 0:02:58.9]} 6. e3 {[%clk 0:02:44.8]} 6... Bf5 {[%clk
0:02:57.8]} 7. Bd3 {[%clk 0:02:42.3]} 7... Bxd3 {[%clk 0:02:57]} 8. Qxd3 {[%clk
0:02:43.2]} 8... e6 {[%clk 0:02:57]} 9. Nf3 {[%clk 0:02:43.7]} 9... Be7 {[%clk
0:02:54.2]} 10. h3 {[%clk 0:02:42.6]} 10... O-O {[%clk 0:02:53.5]} 11. O-O
{[%clk 0:02:42.9]} 11... Qa5 {[%clk 0:02:52.6]} 12. a3 {[%clk 0:02:36.5]} 12...
Rfc8 {[%clk 0:02:50.8]} 13. b4 {[%clk 0:02:35.1]} 13... Qd8 {[%clk 0:02:50.7]}
14. Rfc1 {[%clk 0:02:35]} 14... a5 {[%clk 0:02:34.5]} 15. b5 {[%clk 0:02:23]}
15... Na7 {[%clk 0:02:33.6]} 16. a4 {[%clk 0:02:22.4]} 16... Nd7 {[%clk
0:02:12.1]} 17. Na2 {[%clk 0:01:54]} 17... Nb6 {[%clk 0:01:59]} 18. Qb3 {[%clk
0:01:53.9]} 18... Rxc1+ {[%clk 0:01:56.2]} 19. Rxc1 {[%clk 0:01:53.6]} 19... Rc8
{[%clk 0:01:56.8]} 20. Nd2 {[%clk 0:01:50]} 20... Rxc1+ {[%clk 0:01:46.6]} 21.
Nxc1 {[%clk 0:01:50.9]} 21... Nac8 {[%clk 0:01:45.1]} 22. Nd3 {[%clk 0:01:48.1]}
22... Bd6 {[%clk 0:01:26.3]} 23. Bxd6 {[%clk 0:01:34.1]} 23... Nxd6 {[%clk
0:01:27.2]} 24. Nc5 {[%clk 0:01:33.9]} 24... Qc7 {[%clk 0:01:24.5]} 25. g3
{[%clk 0:01:27.4]} 25... Nbc4 {[%clk 0:01:20.5]} 26. Nxc4 {[%clk 0:01:24.4]}
26... Nxc4 {[%clk 0:00:55.5]} 27. b6 {[%clk 0:01:07.5]} 27... Qc6 {[%clk
0:00:41.9]} 28. Qb5 {[%clk 0:00:26.6]} 28... Qxb5 {[%clk 0:00:40.6]} 29. axb5
{[%clk 0:00:27.5]} 29... Nxb6 {[%clk 0:00:34.8]} 30. Nxb7 {[%clk 0:00:28]} 30...
a4 {[%clk 0:00:34.3]} 31. Nc5 {[%clk 0:00:28]} 31... a3 {[%clk 0:00:26.7]} 32.
Kf1 {[%clk 0:00:26.9]} 32... a2 {[%clk 0:00:19.7]} 33. Nb3 {[%clk 0:00:27.2]}
33... Nc4 {[%clk 0:00:15.8]} 34. Ke2 {[%clk 0:00:24.9]} 34... Kf8 {[%clk
0:00:15.2]} 35. Kd3 {[%clk 0:00:21.3]} 35... Na3 {[%clk 0:00:14.5]} 36. b6
{[%clk 0:00:18.2]} 36... a1=Q {[%clk 0:00:02.1]} 37. Nxa1 {[%clk 0:00:17.8]} 1-0

[Event "Late-Titled-Tuesday-Blitz-January-23-2024"]
[Site "Chess.com"]
[Date "2024.01.23"]
[Round "8"]
[White "Jem"]
[Black "IranianCheetah"]
[Result "0-1"]
[WhiteElo "2161"]
[BlackElo "2345"]
[TimeControl "180+1"]
[EndTime "15:25:18 PST"]
[Termination "IranianCheetah won on time"]

1. e4 {[%clk 0:03:00.9]} 1... e5 {[%clk 0:03:00.2]} 2. Nf3 {[%clk 0:03:00.3]}
2... Nc6 {[%clk 0:03:01.1]} 3. Bb5 {[%clk 0:03:00]} 3... a6 {[%clk 0:03:01.1]}
4. Ba4 {[%clk 0:02:59.5]} 4... Nf6 {[%clk 0:03:01.8]} 5. d4 {[%clk 0:02:59.6]}
5... exd4 {[%clk 0:03:01.3]} 6. O-O {[%clk 0:02:59.7]} 6... Be7 {[%clk 0:02:56]}
7. Re1 {[%clk 0:02:59.3]} 7... O-O {[%clk 0:02:54.1]} 8. e5 {[%clk 0:02:58.7]}
8... Nd5 {[%clk 0:02:54.1]} 9. Nxd4 {[%clk 0:02:48.2]} 9... Nb6 {[%clk
0:02:49.9]} 10. Nxc6 {[%clk 0:02:37.9]} 10... dxc6 {[%clk 0:02:47.6]} 11. Bb3
{[%clk 0:02:36.5]} 11... Qxd1 {[%clk 0:02:40]} 12. Rxd1 {[%clk 0:02:36.1]} 12...
c5 {[%clk 0:02:30.5]} 13. c3 {[%clk 0:02:35.3]} 13... c4 {[%clk 0:02:30.3]} 14.
Bc2 {[%clk 0:02:33.3]} 14... Bg4 {[%clk 0:02:30.6]} 15. f3 {[%clk 0:02:30.9]}
15... Bc5+ {[%clk 0:02:30.6]} 16. Kf1 {[%clk 0:02:27.9]} 16... Be6 {[%clk
0:02:27.8]} 17. Bf4 {[%clk 0:02:22.3]} 17... Nd5 {[%clk 0:02:23]} 18. Bd2 {[%clk
0:02:19.1]} 18... Rad8 {[%clk 0:02:16.3]} 19. Ke2 {[%clk 0:02:17.7]} 19... Rd7
{[%clk 0:02:14.9]} 20. a4 {[%clk 0:02:13.4]} 20... Rfd8 {[%clk 0:02:14.9]} 21.
Na3 {[%clk 0:02:12.7]} 21... h6 {[%clk 0:02:02]} 22. Nxc4 {[%clk 0:02:02.5]}
22... Nxc3+ {[%clk 0:01:43.5]} 23. Bxc3 {[%clk 0:01:56.7]} 23... Bxc4+ {[%clk
0:01:43.5]} 24. Ke1 {[%clk 0:01:51.9]} 24... Bg1 {[%clk 0:01:38.7]} 25. h3
{[%clk 0:01:36]} 25... Bh2 {[%clk 0:01:38.9]} 26. Kf2 {[%clk 0:01:19.4]} 26...
Bf4 {[%clk 0:01:13.1]} 27. Rxd7 {[%clk 0:01:01.8]} 27... Rxd7 {[%clk 0:01:14]}
28. Rd1 {[%clk 0:01:00.2]} 28... Rxd1 {[%clk 0:01:08.2]} 29. Bxd1 {[%clk
0:01:00.2]} 29... Kf8 {[%clk 0:01:03.9]} 30. g3 {[%clk 0:00:59]} 30... Bc1
{[%clk 0:01:02.4]} 31. f4 {[%clk 0:00:54.6]} 31... Ke7 {[%clk 0:01:02.3]} 32.
Bf3 {[%clk 0:00:48.8]} 32... b6 {[%clk 0:00:56.9]} 33. Bd4 {[%clk 0:00:31.2]}
33... Bd2 {[%clk 0:00:46.2]} 34. Be2 {[%clk 0:00:21.3]} 34... Bb3 {[%clk
0:00:26.4]} 35. Bxa6 {[%clk 0:00:11]} 35... Bxa4 {[%clk 0:00:26.7]} 36. Ke2
{[%clk 0:00:10.4]} 36... Bb4 {[%clk 0:00:21.6]} 37. Kd3 {[%clk 0:00:09.2]} 37...
Bd7 {[%clk 0:00:17.6]} 38. g4 {[%clk 0:00:05.5]} 38... Bc6 {[%clk 0:00:17.4]}
39. Bc4 {[%clk 0:00:01.9]} 39... g6 {[%clk 0:00:16]} 40. b3 {[%clk 0:00:01.6]}
40... h5 {[%clk 0:00:15.5]} 41. gxh5 {[%clk 0:00:01.4]} 41... gxh5 {[%clk
0:00:16.4]} 42. Bc3 {[%clk 0:00:01.6]} 42... Bc5 {[%clk 0:00:15.9]} 0-1

[Event "Late-Titled-Tuesday-Blitz-January-23-2024"]
[Site "Chess.com"]
[Date "2024.01.23"]
[Round "8"]
[White "el008"]
[Black "Goryachkina"]
[Result "0-1"]
[WhiteElo "2464"]
[BlackElo "2685"]
[TimeControl "180+1"]
[EndTime "15:25:23 PST"]
[Termination "Goryachkina won on time"]

1. e4 {[%clk 0:03:00.9]} 1... c5 {[%clk 0:03:00]} 2. Nf3 {[%clk 0:03:01.1]} 2...
e6 {[%clk 0:03:00.4]} 3. d4 {[%clk 0:03:01.8]} 3... cxd4 {[%clk 0:03:00.7]} 4.
Nxd4 {[%clk 0:03:02.7]} 4... Nc6 {[%clk 0:03:01.1]} 5. Nc3 {[%clk 0:03:02.5]}
5... Bc5 {[%clk 0:03:00.9]} 6. Nxc6 {[%clk 0:03:00.4]} 6... bxc6 {[%clk
0:03:00.7]} 7. Qd3 {[%clk 0:02:57.2]} 7... Ne7 {[%clk 0:02:58.2]} 8. Be3 {[%clk
0:02:53.3]} 8... Bxe3 {[%clk 0:02:56.5]} 9. Qxe3 {[%clk 0:02:54.2]} 9... O-O
{[%clk 0:02:56.5]} 10. e5 {[%clk 0:02:50.1]} 10... Qa5 {[%clk 0:02:54.2]} 11.
Bc4 {[%clk 0:02:34.5]} 11... Qb4 {[%clk 0:02:42.7]} 12. Bb3 {[%clk 0:02:33.9]}
12... a5 {[%clk 0:02:40]} 13. a3 {[%clk 0:02:30.7]} 13... Qg4 {[%clk 0:02:36.6]}
14. O-O {[%clk 0:02:30]} 14... a4 {[%clk 0:02:27.6]} 15. f3 {[%clk 0:02:13.3]}
15... Qh4 {[%clk 0:02:22.7]} 16. g3 {[%clk 0:02:13.6]} 16... Nf5 {[%clk
0:02:12.6]} 17. Qf2 {[%clk 0:01:52.7]} 17... Qh3 {[%clk 0:02:05.2]} 18. Nxa4
{[%clk 0:01:48.9]} 18... Ra5 {[%clk 0:01:52.3]} 19. Rfe1 {[%clk 0:01:37.2]}
19... c5 {[%clk 0:01:39.7]} 20. c3 {[%clk 0:01:25.7]} 20... Bb7 {[%clk
0:01:36.2]} 21. Bc2 {[%clk 0:01:16.8]} 21... c4 {[%clk 0:01:09.4]} 22. Nb6
{[%clk 0:01:08.8]} 22... Ba6 {[%clk 0:00:42.4]} 23. Nxd7 {[%clk 0:00:55]} 23...
Ra8 {[%clk 0:00:39.5]} 24. Rad1 {[%clk 0:00:51.7]} 24... Rb5 {[%clk 0:00:36.8]}
25. Be4 {[%clk 0:00:46.7]} 25... Rc8 {[%clk 0:00:34.2]} 26. Nb6 {[%clk
0:00:28.9]} 26... Rb8 {[%clk 0:00:31.4]} 27. a4 {[%clk 0:00:24.8]} 27... Rb3
{[%clk 0:00:27.3]} 28. Bxf5 {[%clk 0:00:16.8]} 28... Qxf5 {[%clk 0:00:24.5]} 29.
Nd7 {[%clk 0:00:15.6]} 29... Ra8 {[%clk 0:00:14.5]} 30. Nc5 {[%clk 0:00:15.8]}
30... Rbb8 {[%clk 0:00:14.6]} 31. Nxa6 {[%clk 0:00:16.2]} 31... Rxa6 {[%clk
0:00:15.5]} 32. Ra1 {[%clk 0:00:08.4]} 32... h5 {[%clk 0:00:15.1]} 33. Qe3
{[%clk 0:00:07.7]} 33... Rxb2 {[%clk 0:00:14.2]} 34. Re2 {[%clk 0:00:07.9]}
34... Rxe2 {[%clk 0:00:09.4]} 35. Qxe2 {[%clk 0:00:08.8]} 35... Ra5 {[%clk
0:00:09.6]} 36. f4 {[%clk 0:00:08.7]} 36... h4 {[%clk 0:00:09.6]} 37. Kf2 {[%clk
0:00:07.9]} 37... Qh3 {[%clk 0:00:09.1]} 38. Kf3 {[%clk 0:00:03.8]} 38... hxg3
{[%clk 0:00:08.1]} 39. hxg3 {[%clk 0:00:04.7]} 39... Rd5 {[%clk 0:00:05.6]} 0-1

[Event "Late-Titled-Tuesday-Blitz-January-23-2024"]
[Site "Chess.com"]
[Date "2024.01.23"]
[Round "8"]
[White "Teidi96"]
[Black "mightysmasher"]
[Result "0-1"]
[WhiteElo "2423"]
[BlackElo "2578"]
[TimeControl "180+1"]
[EndTime "15:25:24 PST"]
[Termination "mightysmasher won on time"]

1. e4 {[%clk 0:03:00.9]} 1... e6 {[%clk 0:02:58.8]} 2. d4 {[%clk 0:03:00.8]}
2... d5 {[%clk 0:02:59]} 3. Nd2 {[%clk 0:03:01.6]} 3... dxe4 {[%clk 0:02:59.2]}
4. Nxe4 {[%clk 0:03:02.5]} 4... Nd7 {[%clk 0:02:59.4]} 5. Nf3 {[%clk 0:03:03.1]}
5... Ngf6 {[%clk 0:02:59.6]} 6. Bd3 {[%clk 0:03:03.8]} 6... Nxe4 {[%clk
0:02:59.4]} 7. Bxe4 {[%clk 0:03:04.7]} 7... Nf6 {[%clk 0:02:57.3]} 8. Bd3 {[%clk
0:03:04.9]} 8... c5 {[%clk 0:02:57.3]} 9. dxc5 {[%clk 0:03:04.8]} 9... Bxc5
{[%clk 0:02:57.2]} 10. O-O {[%clk 0:03:05.5]} 10... O-O {[%clk 0:02:57.2]} 11.
a3 {[%clk 0:02:59.2]} 11... b6 {[%clk 0:02:56.6]} 12. b4 {[%clk 0:02:59.1]}
12... Bd6 {[%clk 0:02:56.2]} 13. Bb2 {[%clk 0:02:58.9]} 13... Bb7 {[%clk
0:02:54.6]} 14. c4 {[%clk 0:02:55.8]} 14... h6 {[%clk 0:02:53.1]} 15. Qe2 {[%clk
0:02:55.5]} 15... Qc7 {[%clk 0:02:44.2]} 16. h3 {[%clk 0:02:52.6]} 16... Kh8
{[%clk 0:02:39.5]} 17. Rfd1 {[%clk 0:02:42.5]} 17... Rad8 {[%clk 0:02:36.1]} 18.
Rac1 {[%clk 0:02:40.3]} 18... Bf4 {[%clk 0:02:32.9]} 19. Rc2 {[%clk 0:02:37]}
19... Rfe8 {[%clk 0:02:21.3]} 20. Ne5 {[%clk 0:02:27.7]} 20... Bxe5 {[%clk
0:01:51.5]} 21. Bxe5 {[%clk 0:02:26.1]} 21... Qc6 {[%clk 0:01:49.2]} 22. f3
{[%clk 0:02:20.2]} 22... Rd7 {[%clk 0:01:33]} 23. Bxf6 {[%clk 0:02:14.8]} 23...
gxf6 {[%clk 0:01:32.4]} 24. Qe3 {[%clk 0:02:03.3]} 24... Kg7 {[%clk 0:01:21.5]}
25. Rcd2 {[%clk 0:02:03]} 25... f5 {[%clk 0:01:11.2]} 26. Qe5+ {[%clk
0:01:27.3]} 26... f6 {[%clk 0:00:38.5]} 27. Qg3+ {[%clk 0:01:23.8]} 27... Kh8
{[%clk 0:00:37.3]} 28. Qh4 {[%clk 0:01:21.5]} 28... Kg7 {[%clk 0:00:35.1]} 29.
Qg3+ {[%clk 0:00:39.9]} 29... Kh8 {[%clk 0:00:18.5]} 30. Qg6 {[%clk 0:00:39.8]}
30... Rg7 {[%clk 0:00:17.7]} 31. Qxh6+ {[%clk 0:00:32.3]} 31... Kg8 {[%clk
0:00:16.2]} 32. Qxf6 {[%clk 0:00:23.5]} 32... Rf8 {[%clk 0:00:15.9]} 33. Qe5
{[%clk 0:00:20.3]} 33... Rff7 {[%clk 0:00:13.2]} 34. Kh1 {[%clk 0:00:16.2]}
34... Kh7 {[%clk 0:00:08.6]} 35. Be2 {[%clk 0:00:05.9]} 35... Qe8 {[%clk
0:00:07.1]} 36. Rd8 {[%clk 0:00:04.6]} 36... Qe7 {[%clk 0:00:06.8]} 37. Qd6
{[%clk 0:00:02.9]} 37... Qh4 {[%clk 0:00:04.7]} 38. Qh2 {[%clk 0:00:01.8]} 38...
Qf2 {[%clk 0:00:04.5]} 0-1